Cogmind - Beta 14 @@@ ROGUE MODE // 2025.01.08 @ 02:03:33 Player: nado Result: Escaped! Performance ------------- Evolutions (9) 4500 Regions Visited (16) 3200 Robots Destroyed (63) 315 Value Destroyed (1936) 1936 Prototype IDs (40) 800 Alien Tech Used (1) 200 Bonus (6401) 6401 TOTAL SCORE: 17352 Bonus ------- High Alert Combat Kills 20 Follower Combat Kills 81 Aligned with FarCom 300 Met Warlord at Base 500 MAIN.C Attacked Warlord 500 Met Warlord at Research 2000 Win 3000 Cogmind --------- Core Integrity 773/1600 Matter 245/300 Energy 99/100 System Corruption 0% Temperature Cool (0) Movement Core (150) Ox2 Location To Epsilon Eridani Parts ------- > --- POWER (2) -------- (None) > --- PROPULSION (8) --- (None) > --- UTILITY (13) ----- Machine Analyzer Advanced Signal Interpreter Advanced Melee Analysis Suite Graphene Brace Hacking Suite Hacking Suite Experimental System Shield > --- WEAPON (2) ------- Enhanced Force Lance > --- INVENTORY (5) ---- Improved Diametric Drive Enhanced Nova Cannon Improved Plasma Cutter Force Lance Peak State ------------ > --- POWER ------------ Light Quantum Reactor Light Quantum Reactor > --- PROPULSION ------- Impulse Thruster Array Impulse Thruster Array Impulse Thruster Array Impulse Thruster Array > --- UTILITY ---------- Advanced Heat Sink Structural Scanner Machine Analyzer Advanced Signal Interpreter Advanced Melee Analysis Suite Advanced Transmission Jammer ECM Suite Reaction Control System Graphene Brace Hacking Suite Hacking Suite Experimental System Shield Advanced System Restoration Module > --- WEAPON ----------- Fusion Bomb Launcher Enhanced Force Lance > --- INVENTORY -------- Improved Diametric Drive Enhanced Nova Cannon Fusion Bomb Launcher Improved Plasma Cutter Force Lance [Rating: 158] Favorites ----------- Power Ion Engine Engine Ion Engine Power Core Micro Fission Core Reactor Light Quantum Reactor Propulsion Improved Treads Treads Improved Treads Hover Unit Improved Antigrav System Flight Unit Improved VTOL Module Utility Hacking Suite Device Advanced Heat Sink Storage Large Storage Unit Processor Machine Analyzer Hackware Hacking Suite Protection Light Armor Plating Weapon Improved Light Cannon Energy Gun Backup Laser III Energy Cannon Heavy Particle Cannon Ballistic Gun Assault Rifle Ballistic Cannon Improved Light Cannon Launcher Mini Grenade Launcher Special Weapon Improved Plasma Cutter Slashing Weapon Ionic Axe Piercing Weapon Enhanced Force Lance Build | -11 -10 -10 -10 -9 -8 -7 -6 -5 -5 -5 -5 -4 -4 -3 -2 -1 ------- Run | Yrd Mat Min Exi Min Mat Fac Fac Fac Upp Upp War Pro Fac Res Res Acc Slots Evolved 18 | . . . . . 4 2 2 2 . . . . 2 2 2 2 Power 1 | . . . . . . . . 1 . . . . . . . . Propulsion 6 | . . . . . 1 1 1 1 . . . . 1 . 1 . Utility 11 | . . . . . 3 1 1 . . . . . 1 2 1 2 Weapon . | . . . . . . . . . . . . . . . . . Parts Attached 155 | 7 10 . . 1 25 10 11 14 4 . 10 1 11 9 31 11 Power 26 | 1 3 . . 1 3 1 3 4 . . 1 . 1 2 5 1 Engine 13 | 1 3 . . 1 2 . 1 3 . . 1 . 1 . . . Core 5 | . . . . . 1 1 2 1 . . . . . . . . Reactor 8 | . . . . . . . . . . . . . . 2 5 1 Propulsion 40 | 2 2 . . . 6 2 4 4 . . 2 . 3 2 13 . Treads 7 | 2 2 . . . 3 . . . . . . . . . . . Leg . | . . . . . . . . . . . . . . . . . Wheel . | . . . . . . . . . . . . . . . . . Hover 6 | . . . . . . . . . . . . . . 1 5 . Flight 27 | . . . . . 3 2 4 4 . . 2 . 3 1 8 . Utility 56 | 1 2 . . . 8 4 4 5 3 . 5 1 5 4 10 4 Device 31 | . . . . . 5 2 1 3 2 . 4 1 2 2 7 2 Storage 4 | 1 1 . . . . . . . . . . . 1 1 . . Processor 4 | . . . . . . . . . . . . . 2 . 1 1 Hackware 8 | . . . . . 1 . 3 . 1 . . . . 1 1 1 Protection 9 | . 1 . . . 2 2 . 2 . . 1 . . . 1 . Artifact . | . . . . . . . . . . . . . . . . . Weapon 33 | 3 3 . . . 8 3 . 1 1 . 2 . 2 1 3 6 Energy Gun . | . . . . . . . . . . . . . . . . . Energy Cannon 2 | . . . . . 1 . . . . . . . . . 1 . Ballistic Gun 6 | 3 1 . . . 2 . . . . . . . . . . . Ballistic Cannon 4 | . 2 . . . 2 . . . . . . . . . . . Launcher 9 | . . . . . 2 2 . . 1 . . . 1 1 . 2 Special Weapon 2 | . . . . . . . . . . . 1 . . . . 1 Impact Weapon . | . . . . . . . . . . . . . . . . . Slashing Weapon 6 | . . . . . 1 1 . 1 . . . . 1 . 2 . Piercing Weapon 4 | . . . . . . . . . . . 1 . . . . 3 Special Melee Weapon . | . . . . . . . . . . . . . . . . . Unidentified Prototypes 15 | . . . . . 1 2 . 2 . . 5 1 . 2 2 . Parts Lost 83 | . 1 . . 1 11 . 5 13 . 1 3 . 8 12 12 16 Power 14 | . . . . 1 2 . 1 2 . . . . 1 3 2 2 Propulsion 28 | . . . . . 5 . 2 5 . . 1 . 2 7 2 4 Utility 33 | . . . . . 2 . 1 6 . 1 2 . 4 1 8 8 Weapon 8 | . 1 . . . 2 . 1 . . . . . 1 1 . 2 Highest Loss Streak 13 | . 1 . . 1 3 . 4 7 . 1 3 . 4 5 12 13 To Critical Strikes . | . . . . . . . . . . . . . . . . . Average Slot Usage (%) 84 | . 91 100 100 98 82 95 98 67 78 76 84 85 76 66 52 75 Engine 7 | . 14 14 14 12 7 . 1 1 5 5 5 5 4 . . . Core 1 | . . . . . . 7 4 4 5 5 5 5 5 . . . Reactor 1 | . . . . . . . . . . . . . . 3 5 7 Treads 13 | . 28 28 28 28 19 . . . . . . . . . . . Flight 9 | . . . . . . 29 33 19 23 23 26 29 26 15 3 15 Device 11 | . . . . . 20 21 15 10 12 11 16 26 25 17 14 25 Storage 7 | . 14 14 14 14 8 . . . . . . . 1 8 1 . Processor 1 | . . . . . . . . . . . . . 1 9 8 9 Hackware 5 | . . . . . . 7 22 21 22 23 18 11 5 4 6 10 Protection 5 | . 5 14 14 14 6 12 6 1 . . 1 . . . . . Ballistic Gun 5 | . 22 . . . 9 . . . . . . . . . . . Ballistic Cannon 8 | . 5 28 28 28 6 . . . . . . . . . . . Launcher 1 | . . . . . . 7 6 5 1 . . . . . . 2 Slashing Weapon 1 | . . . . . . 7 5 . 5 5 5 5 5 4 3 1 Peak Build Rating 158 | 6 13 13 13 13 39 42 54 64 78 78 101 94 100 110 139 158 Average Rating 44 | 4 8 13 13 12 24 37 50 44 73 73 85 91 91 86 77 143 On Entrance 51 | . 6 13 13 13 13 32 41 53 64 78 73 88 94 89 67 139 Naked Turns . | . . . . . . . . . . . . . . . . . Heaviest Build 61 | 14 36 36 36 36 49 16 16 25 24 24 29 25 33 37 40 61 Greatest Support 69 | 40 46 46 46 46 69 21 27 32 29 29 37 37 43 43 64 64 Greatest Overweight (x) 16 | . . . . . 16 . 1 1 . . . . . 3 9 2 Average Overweight (x) . | . . . . . . . . . . . . . . . . . Largest Inventory Capacity 15 | 8 15 15 15 15 15 5 5 5 5 5 5 5 5 5 5 5 Average Capacity 10 | 6 13 15 15 15 14 5 5 5 5 5 5 5 5 5 5 5 Most Carried 15 | 2 15 15 15 15 15 5 5 5 5 5 5 4 5 5 5 5 Average Carried 9 | 1 11 14 15 14 13 5 4 3 4 5 4 3 4 5 4 4 Final Capacity 15 | 8 15 15 15 15 5 5 5 5 5 5 5 5 5 5 5 5 Final Carried 15 | 2 15 15 15 14 5 5 5 5 5 5 4 3 5 5 5 4 Class Distribution -------------------- 54% | Mutant 15% | Hacker-Sprinter 5% | Hacker-Ninja 4% | Infiltrator-Ninja 4% | Infiltrator-Sprinter 3% | Sprinter 3% | Scavenger-Assassin Dominant Class ---------------- Mutant | -10/Materials Mutant | -10/Mines Mutant | -10/Exiles Mutant | -9/Mines Mutant | -8/Materials Infiltrator-Sprinter | -7/Factory Hacker-Sprinter | -6/Factory Hacker-Sprinter | -5/Factory Hacker-Sprinter | -5/Upper Caves Hacker-Sprinter | -5/Upper Caves Hacker-Sprinter | -5/Warlord Hacker-Sprinter | -4/Proximity Caves Sprinter | -4/Factory Infiltrator-Ninja | -3/Research Scavenger-Assassin | -2/Research Hacker-Ninja | -1/Access Resources | -11 -10 -10 -10 -9 -8 -7 -6 -5 -5 -5 -5 -4 -4 -3 -2 -1 ----------- Run | Yrd Mat Min Exi Min Mat Fac Fac Fac Upp Upp War Pro Fac Res Res Acc Matter Collected 2739 | 270 482 39 . 37 613 143 88 158 113 . 207 . 78 116 330 65 Remotely . | . . . . . . . . . . . . . . . . . Salvage Created 1952 | . 615 . . . 704 75 . 20 113 . . . 88 81 106 150 Parts 147 | . 51 . . 2 50 8 . 4 3 . . . 10 9 2 8 Haulers Intercepted 4 | . 1 . . . 2 . . . . . . . . . 1 . Recyclers Shooed 2 | . 1 . . 1 . . . . . . . . . . . . Parts Field Recycled . | . . . . . . . . . . . . . . . . . Retrieved Matter . | . . . . . . . . . . . . . . . . . Parts Self-Destructed . | . . . . . . . . . . . . . . . . . Prevented . | . . . . . . . . . . . . . . . . . Kills | -11 -10 -10 -10 -9 -8 -7 -6 -5 -5 -5 -5 -4 -4 -3 -2 -1 ------- Run | Yrd Mat Min Exi Min Mat Fac Fac Fac Upp Upp War Pro Fac Res Res Acc Combat Hostiles Destroyed 39 | . 13 . . . 22 . . . . . . . . 2 . 2 Guns 24 | . 13 . . . 11 . . . . . . . . . . . Cannons 7 | . . . . . 7 . . . . . . . . . . . AOE 8 | . . . . . 4 . . . . . . . . 2 . 2 Classes Destroyed 13 | . 8 . . . 2 . . . 1 . . . . 1 . 1 Worker 1 | . 1 . . . . . . . . . . . . . . . Builder 10 | . 3 . . . 1 1 . 1 . . . . 2 1 . 1 Tunneler 2 | . 1 . . 1 . . . . . . . . . . . . Hauler 4 | . 1 . . . 2 . . . . . . . . . 1 . Operator 3 | . 2 . . . . 1 . . . . . . . . . . Watcher 4 | . 2 . . . . 1 . . . . . . 1 . . . Swarmer 13 | . 5 . . . 8 . . . . . . . . . . . Grunt 18 | . 8 . . . 10 . . . . . . . . . . . Sentry 3 | . . . . . 3 . . . . . . . . . . . Hunter 2 | . . . . . . . . . . . . . . . . 2 Programmer 2 | . . . . . . . . . . . . . . 2 . . Heavy 1 | . . . . . 1 . . . . . . . . . . . Samaritan 2 | . . . . . . . . . 2 . . . . . . . Best Kill Streak 5 | . 3 . . 1 5 1 . 1 . . . . 1 2 1 3 Combat Bots Only 5 | . 3 . . . 5 . . . . . . . . 2 . 2 Max Kills in Single Turn 3 | . 2 . . 1 2 1 . 1 1 . . . 1 1 1 3 Gunslinging 1 | . 1 . . . . . . . . . . . . . . . Exploded 2 | . . . . . 2 . . . . . . . . 1 . 2 Melee . | . . . . . . . . . . . . . . . . . Uniques/NPCs Destroyed . | . . . . . . . . . . . . . . . . . Combat | -11 -10 -10 -10 -9 -8 -7 -6 -5 -5 -5 -5 -4 -4 -3 -2 -1 -------- Run | Yrd Mat Min Exi Min Mat Fac Fac Fac Upp Upp War Pro Fac Res Res Acc Hostile Shots Fired 848 | . 75 7 . 5 128 1 9 90 7 6 . 3 104 125 144 144 Missed 350 | . 15 2 . . 24 . 2 52 4 2 . 2 65 73 53 56 Damage Taken 11003 | . 708 49 . 266 1811 49 344 1121 48 92 520 34 821 1145 1884 2111 Core 3349 | . 160 7 . 17 284 49 39 309 . 42 232 34 142 160 1047 827 Absorbed by Shields . | . . . . . . . . . . . . . . . . . Redirected to Shielding 203 | . . . . . 75 . 56 . . . 72 . . . . . Ignored by Resistances 8 | . . . . . . . . . . . . . . . 8 . Regen/Repaired (Parts) 61 | . . . . . 8 36 . . . . 17 . . . . . Core Remaining (%) 64 | 100 . . . 26 48 93 95 . . . . 38 87 87 27 48 Volleys Fired 184 | . 72 1 . 4 75 . 1 18 . . . . 2 5 2 4 Largest 2 | . 2 2 . 2 2 . 1 1 . . . . 1 1 1 1 Hottest 120 | . 78 78 . 78 98 . 30 30 . . . . 30 52 120 52 Shots Fired 323 | . 144 2 . 8 137 . 1 18 . . . . 2 5 2 4 Gun 200 | . 130 . . . 70 . . . . . . . . . . . Cannon 89 | . 14 2 . 8 63 . . . . . . . . . 2 . Launcher 34 | . . . . . 4 . 1 18 . . . . 2 5 . 4 Special . | . . . . . . . . . . . . . . . . . Kinetic 286 | . 144 2 . 8 132 . . . . . . . . . . . Thermal 3 | . . . . . 1 . . . . . . . . . 2 . Explosive 34 | . . . . . 4 . 1 18 . . . . 2 5 . 4 Electromagnetic . | . . . . . . . . . . . . . . . . . Robot Hit Streak 15 | . 15 1 . 1 13 . . 2 . . . . . 3 . 1 Robot Miss Streak 5 | . 5 1 . 2 4 . . 1 . . . . . 1 2 . Penetration Max . | . . . . . . . . . . . . . . . . . Secondary Targets 2 | . 1 . . . 1 . . . . . . . . . . . Max Gunslinging Chain 1 | . 1 . . . 1 . . . . . . . . . . . Shots Hit Robots 218 | . 93 1 . 3 94 7 . 2 2 . . . 7 4 4 1 Core Hits 100 | . 36 1 . 1 42 3 . 2 1 . . . 4 2 2 6 Critical Kills . | . . . . . . . . . . . . . . . . . Critical Parts Destroyed 2 | . 1 . . . 1 . . . . . . . . . . . Critical Strikes 6 | . 1 . . . 4 . . . . . . . 1 . . . Destroy 2 | . 1 . . . 1 . . . . . . . . . . . Blast 3 | . . . . . 3 . . . . . . . . . . . Sever 1 | . . . . . . . . . . . . . 1 . . . Melee Attacks 100 | . . . . . . 23 10 . 2 . 4 1 26 14 6 14 Impact . | . . . . . . . . . . . . . . . . . Slashing 92 | . . . . . . 23 10 . 2 . 4 1 26 14 6 6 Piercing 8 | . . . . . . . . . . . . . . . . 8 Sneak Attacks 7 | . . . . . . 1 . . 2 . . . 2 1 1 . Combat Hostiles . | . . . . . . . . . . . . . . . . . Follow-up Attacks . | . . . . . . . . . . . . . . . . . Damage Inflicted 5648 | . 1213 53 . 71 1913 381 . 93 265 . . . 451 461 153 594 Guns 1800 | . 1050 . . . 750 . . . . . . . . . . . Cannons 1086 | . 124 21 . 66 875 . . . . . . . . . . . Explosions 1274 | . . . . . 287 . . 93 . . . . 27 380 . 487 Melee 1304 | . . . . . . 381 . . 265 . . . 424 81 153 . Ramming 184 | . 39 32 . 5 1 . . . . . . . . . . 107 Kinetic 2886 | . 1174 21 . 66 1625 . . . . . . . . . . . Thermal . | . . . . . . . . . . . . . . . . . Explosive 1274 | . . . . . 287 . . 93 . . . . 27 380 . 487 Electromagnetic . | . . . . . . . . . . . . . . . . . Impact . | . . . . . . . . . . . . . . . . . Slashing 1304 | . . . . . . 381 . . 265 . . . 424 81 153 . Piercing . | . . . . . . . . . . . . . . . . . Highest Corruption 21 | . . . . . . . 4 21 21 21 21 10 4 11 . 2 Average Corruption 8 | . . . . . . . 2 13 21 21 13 10 2 5 . 1 Corruption Purged 2 | . . . . . . . . . . . . . . . . 2 Corruption Blocked . | . . . . . . . . . . . . . . . . . Effects 63 | . . . . . . . 4 32 7 1 3 3 3 9 . 1 Message Errors 15 | . . . . . . . 1 6 3 . 1 1 . 3 . . Matter Fused 12 | . . . . . . . . 5 2 . 1 . 1 2 . 1 Heat Flow Errors 7 | . . . . . . . . 3 . . 1 1 . 2 . . Energy Discharges 8 | . . . . . . . 2 3 1 1 . . . 1 . . Data Loss (minor) 7 | . . . . . . . 1 2 . . . 1 2 1 . . Data Loss (major) 1 | . . . . . . . . 1 . . . . . . . . Misfires 1 | . . . . . . . . 1 . . . . . . . . Misdirections 11 | . . . . . . . . 10 1 . . . . . . . Weapon Failures 1 | . . . . . . . . 1 . . . . . . . . Overload Shots . | . . . . . . . . . . . . . . . . . Overflow Damage 354 | . 1 . . . 6 60 18 13 92 . . . 65 70 . 29 Projectiles 3 | . 1 . . . 2 . . . . . . . . . . . Explosions 134 | . . . . . 4 . 18 13 . . . . . 70 . 29 Melee 217 | . . . . . . 60 . . 92 . . . 65 . . . Knockbacks 18 | . . 2 . 2 14 . . . . . . . . . . . Impact 1 | . . 1 . . . . . . . . . . . . . . Kinetic 14 | . . 1 . 2 11 . . . . . . . . . . . Secondary 3 | . . . . . 3 . . . . . . . . . . . Self-Inflicted Damage 430 | . . . . . 91 . 22 137 . . . . . 24 . 156 Shots 10 | . . . . . 3 . 1 4 . . . . . 1 . 1 Rammed 15 | . 4 6 . 2 3 . . . . . . . . . . . Targets Rammed 16 | . 4 6 . 3 3 . . . . . . . . . . . Kicked . | . . . . . . . . . . . . . . . . . Crushed 1 | . . . . 1 . . . . . . . . . . . . Highest Temperature 273 | . 108 27 . 56 252 . . 273 . 5 108 77 77 144 52 16 Average Temperature 62 | . 21 16 . 28 131 . . 145 . 5 64 41 34 35 27 8 Received Heat Transfer 1245 | . 312 6 . . 621 . 12 . 9 27 . 9 159 . 72 18 Effects 1 | . . . . . 1 . . . . . . . . . . . Energy Bleed 1 | . . . . . 1 . . . . . . . . . . . Siege Activations . | . . . . . . . . . . . . . . . . . Robots Corrupted . | . . . . . . . . . . . . . . . . . Combat Hostiles . | . . . . . . . . . . . . . . . . . Parts Fried . | . . . . . . . . . . . . . . . . . Impact Corruptions . | . . . . . . . . . . . . . . . . . Robots Melted . | . . . . . . . . . . . . . . . . . Combat Hostiles . | . . . . . . . . . . . . . . . . . Parts Melted . | . . . . . . . . . . . . . . . . . Heat Transferred . | . . . . . . . . . . . . . . . . . Parts Sabotaged . | . . . . . . . . . . . . . . . . . Parts Stolen . | . . . . . . . . . . . . . . . . . Parts Stripped . | . . . . . . . . . . . . . . . . . Power Chain Reactions . | . . . . . . . . . . . . . . . . . Alert | -11 -10 -10 -10 -9 -8 -7 -6 -5 -5 -5 -5 -4 -4 -3 -2 -1 ------- Run | Yrd Mat Min Exi Min Mat Fac Fac Fac Upp Upp War Pro Fac Res Res Acc Peak Influence 446 | . 162 58 . 86 290 394 72 373 . . . . 143 446 193 316 Initial 135 | . . . . . . 80 46 4 . . . . . 60 135 . Average 97 | . 44 4 . 53 122 269 28 224 . . . . 32 218 92 143 Maximum Alert Level 2 | . . . . . 1 1 . 1 . . . . . 2 . 1 Low Security (%) 82 | 100 100 100 . 100 81 8 100 36 . . . . 100 32 100 85 Level 1 17 | . . . . . 18 91 . 63 . . . . . 65 . 14 Level 2 . | . . . . . . . . . . . . . . 1 . . Level 3 . | . . . . . . . . . . . . . . . . . Level 4 . | . . . . . . . . . . . . . . . . . Level 5 . | . . . . . . . . . . . . . . . . . High Security . | . . . . . . . . . . . . . . . . . Max Security . | . . . . . . . . . . . . . . . . . Squads Dispatched 34 | . 3 . . . 2 1 3 7 . . . . 7 1 3 7 Investigation 17 | . 2 . . . . . 2 5 . . . . 6 1 1 . Extermination 2 | . . . . . . . . 1 . . . . 1 . . . Reinforcement 11 | . 1 . . . 2 . 1 1 . . . . . . 2 4 Assault 1 | . . . . . . 1 . . . . . . . . . . Garrison 3 | . . . . . . . . . . . . . . . . 3 Intercept . | . . . . . . . . . . . . . . . . . Searches Triggered . | . . . . . . . . . . . . . . . . . Construction Impeded . | . . . . . . . . . . . . . . . . . Haulers Reinforced 1 | . . . . . . . . . . . . . . . . 1 Active Scanning Responses . | . . . . . . . . . . . . . . . . . Cargo Convoy Interrupts . | . . . . . . . . . . . . . . . . . Stealth | -11 -10 -10 -10 -9 -8 -7 -6 -5 -5 -5 -5 -4 -4 -3 -2 -1 --------- Run | Yrd Mat Min Exi Min Mat Fac Fac Fac Upp Upp War Pro Fac Res Res Acc Distress Signals 21 | . . . . . 3 1 . 4 . . . . 1 . 10 2 Communications Jammed 14 | . . . . . . . . . . . . . 7 7 . . Distress Signals 14 | . . . . . . . . . . . . . 7 7 . . Times Spotted 174 | . 27 5 . 5 31 3 3 19 4 6 . 1 20 23 8 19 Peak Tracking Total 11 | . 5 3 . 2 5 2 1 9 3 6 . 1 11 7 6 4 Tactical Retreats 30 | . 1 . . . 2 1 1 5 1 2 . . 4 6 2 5 Traps | -11 -10 -10 -10 -9 -8 -7 -6 -5 -5 -5 -5 -4 -4 -3 -2 -1 ------- Run | Yrd Mat Min Exi Min Mat Fac Fac Fac Upp Upp War Pro Fac Res Res Acc Traps Triggered 8 | . 2 . . . . . 2 1 . . 3 . . . . . Indirectly . | . . . . . . . . . . . . . . . . . Trap Hack Attempts . | . . . . . . . . . . . . . . . . . Triggered . | . . . . . . . . . . . . . . . . . Disarmed . | . . . . . . . . . . . . . . . . . Reprogrammed . | . . . . . . . . . . . . . . . . . Reused . | . . . . . . . . . . . . . . . . . Traps Extracted . | . . . . . . . . . . . . . . . . . Installed . | . . . . . . . . . . . . . . . . . Triggered 8 | . . . . . . . . . . . 8 . . . . . Machines | -11 -10 -10 -10 -9 -8 -7 -6 -5 -5 -5 -5 -4 -4 -3 -2 -1 ---------- Run | Yrd Mat Min Exi Min Mat Fac Fac Fac Upp Upp War Pro Fac Res Res Acc Machines Disabled 21 | . 1 . . . . 3 1 9 . . 3 1 1 . . 2 Max in Single Turn 2 | . 1 . . . . 1 1 2 . . 1 1 1 . . 1 Garrison Access 7 | . . . . . 1 2 1 . . . . . . 2 . 1 Machines Repaired . | . . . . . . . . . . . . . . . . . Machines Dismantled 3 | . . . . . . . . . . . 3 . . . . . Machines Sabotaged . | . . . . . . . . . . . . . . . . . Overloaded Fab Kills . | . . . . . . . . . . . . . . . . . Hacking | -11 -10 -10 -10 -9 -8 -7 -6 -5 -5 -5 -5 -4 -4 -3 -2 -1 --------- Run | Yrd Mat Min Exi Min Mat Fac Fac Fac Upp Upp War Pro Fac Res Res Acc Machines Accessed 60 | . 5 1 2 . 4 7 10 5 1 . 3 1 6 5 2 8 Terminals 35 | . 5 . . . 1 3 7 4 1 . . . 3 3 1 7 Fabricators 5 | . . . . . . . 1 1 . . . . 3 . . . Repair Stations 2 | . . . . . 1 1 . . . . . . . . . . Recycling Units . | . . . . . . . . . . . . . . . . . Scanalyzers 3 | . . . . . 1 1 1 . . . . . . . . . Garrison Access 8 | . . . . . 1 2 1 . . . . . . 2 1 1 Total Hacks 134 | . 15 1 2 . 14 19 21 11 1 . 4 1 19 7 4 15 Successful 69 | . 8 1 2 . 9 10 15 3 1 . 4 1 6 4 . 5 Failed 65 | . 7 . . . 5 9 6 8 . . . . 13 3 4 10 Catastrophic 21 | . 1 . . . 1 1 2 4 . . . . 4 1 2 5 Database Lockouts . | . . . . . . . . . . . . . . . . . Manual 68 | . 9 . 1 . 4 9 12 8 . . . . 9 3 2 11 Terminals 81 | . 15 . . . 4 8 14 9 1 . . . 9 5 2 14 Fabricators 15 | . . . . . . . 3 2 . . . . 10 . . . Repair Stations 7 | . . . . . 4 3 . . . . . . . . . . Recycling Units . | . . . . . . . . . . . . . . . . . Scanalyzers 12 | . . . . . 5 4 3 . . . . . . . . . Garrison Access 11 | . . . . . 1 4 1 . . . . . . 2 2 1 Terminal Hacks 37 | . 7 1 2 . 1 4 8 1 1 . 4 1 2 2 . 3 Record 7 | . . . 1 . . . . 1 1 . 2 1 . 1 . . Part Schematic 2 | . . . . . . . 2 . . . . . . . . . Robot Analysis 4 | . 2 . . . . . 1 . . . . . . . . 1 Prototype ID Bank 2 | . 2 . . . . . . . . . . . . . . . Open Door 4 | . . 1 . . . . 1 . . . 2 . . . . . Open DSF 1 | . . . . . . . . . . . . . . 1 . . Level Access Points 4 | . . . . . . 1 1 . . . . . 1 . . 1 Terminal Index 2 | . . . . . . 1 . . . . . . . . . 1 Fabricator Index 2 | . . . . . . 1 1 . . . . . . . . . Unreport Threat 7 | . 2 . . . 1 1 2 . . . . . 1 . . . Hauler Manifests 1 | . 1 . . . . . . . . . . . . . . . Derelict Proto ID Bank 1 | . . . 1 . . . . . . . . . . . . . Fabricator Hacks 8 | . . . . . . . 2 2 . . . . 4 . . . Load Schematic 5 | . . . . . . . 1 1 . . . . 3 . . . Build 3 | . . . . . . . 1 1 . . . . 1 . . . Repair Station Hacks 4 | . . . . . 2 2 . . . . . . . . . . Scan Component 2 | . . . . . 1 1 . . . . . . . . . . Repair 2 | . . . . . 1 1 . . . . . . . . . . Recycling Unit Hacks . | . . . . . . . . . . . . . . . . . Scanalyzer 11 | . . . . . 5 3 3 . . . . . . . . . Insert Component 6 | . . . . . 2 2 2 . . . . . . . . . Analyze 5 | . . . . . 3 1 1 . . . . . . . . . Garrison Access Hacks 6 | . . . . . 1 1 1 . . . . . . 2 . 1 Seal Access 6 | . . . . . 1 1 1 . . . . . . 2 . 1 Unauthorized Hacks 3 | . 1 . . . . . 1 . . . . . . . . 1 Terminals 3 | . 1 . . . . . 1 . . . . . . . . 1 Botnet 3 | . 1 . . . . . 1 . . . . . . . . 1 Fabricators . | . . . . . . . . . . . . . . . . . Repair Stations . | . . . . . . . . . . . . . . . . . Recycling Units . | . . . . . . . . . . . . . . . . . Scanalyzers . | . . . . . . . . . . . . . . . . . Garrison Access . | . . . . . . . . . . . . . . . . . Data Cores Recovered . | . . . . . . . . . . . . . . . . . Used . | . . . . . . . . . . . . . . . . . Hacking Detections 44 | . 5 . . . 2 7 8 5 . . . . 6 2 2 7 Full Trace Events 16 | . 1 . . . . . 2 5 . . . . 6 1 1 . Feedback Events 2 | . . . . . . . 1 . . . . . 1 . . . Corruption 1 | . . . . . . . 1 . . . . . . . . . Hackware Fried 1 | . . . . . . . . . . . . . 1 . . . Feedback Blocked . | . . . . . . . . . . . . . . . . . Robot Schematics Acquired . | . . . . . . . . . . . . . . . . . Robots Built . | . . . . . . . . . . . . . . . . . Authchips . | . . . . . . . . . . . . . . . . . Time . | . . . . . . . . . . . . . . . . . Total Robot Build Rating . | . . . . . . . . . . . . . . . . . Part Schematics Acquired 6 | . . . . . 2 1 3 . . . . . . . . . Parts Built 3 | . . . . . . . 1 1 . . . . 1 . . . Authchips . | . . . . . . . . . . . . . . . . . Time 304 | . . . . . . . 36 134 . . . . 134 . . . Total Part Build Rating 11 | . . . . . . . 3 4 . . . . 4 . . . Parts Repaired 2 | . . . . . 1 1 . . . . . . . . . . Time 103 | . . . . . 53 50 . . . . . . . . . . Parts Recycled . | . . . . . . . . . . . . . . . . . Recycled Matter . | . . . . . . . . . . . . . . . . . Retrieved Matter . | . . . . . . . . . . . . . . . . . Retrieved Components . | . . . . . . . . . . . . . . . . . Parts Scanalyzed 4 | . . . . . 2 1 1 . . . . . . . . . Part Schematics Acquired 4 | . . . . . 2 1 1 . . . . . . . . . Parts Damaged 2 | . . . . . 1 1 . . . . . . . . . . Bothacking | -11 -10 -10 -10 -9 -8 -7 -6 -5 -5 -5 -5 -4 -4 -3 -2 -1 ------------ Run | Yrd Mat Min Exi Min Mat Fac Fac Fac Upp Upp War Pro Fac Res Res Acc Used RIF Installer . | . . . . . . . . . . . . . . . . . Robots Hacked . | . . . . . . . . . . . . . . . . . Non-combat . | . . . . . . . . . . . . . . . . . Combat . | . . . . . . . . . . . . . . . . . Robot Hacks Applied . | . . . . . . . . . . . . . . . . . Relay Couplers Released 5 | . . . . . . 2 . . . . . . . 3 . . Machine Destruction 5 | . . . . . . 2 . . . . . . . 3 . . Fabnet Peak Effective % . | . . . . . . . . . . . . . . . . . Robots Rewired . | . . . . . . . . . . . . . . . . . Allies Hacked . | . . . . . . . . . . . . . . . . . Hacks Repelled . | . . . . . . . . . . . . . . . . . Allies | -11 -10 -10 -10 -9 -8 -7 -6 -5 -5 -5 -5 -4 -4 -3 -2 -1 -------- Run | Yrd Mat Min Exi Min Mat Fac Fac Fac Upp Upp War Pro Fac Res Res Acc Total Allies 3 | . . 3 . . . . . . . . . . . . . . Largest Group 3 | . . 3 3 3 . . . . . . . . . . . . Highest-Rated Group 40 | . . 40 40 40 . . . . . . . . . . . . Highest-Rated Ally 16 | . . 16 16 16 . . . . . . . . . . . . Total Orders . | . . . . . . . . . . . . . . . . . Ally Attacks 15 | . . 6 . 9 . . . . . . . . . . . . Total Damage 172 | . . 75 . 97 . . . . . . . . . . . . Kills 5 | . . 2 . 3 . . . . . . . . . . . . Allies Corrupted . | . . . . . . . . . . . . . . . . . Allies Melted . | . . . . . . . . . . . . . . . . . Intel | -11 -10 -10 -10 -9 -8 -7 -6 -5 -5 -5 -5 -4 -4 -3 -2 -1 ------- Run | Yrd Mat Min Exi Min Mat Fac Fac Fac Upp Upp War Pro Fac Res Res Acc Robot Analysis Total 4 | . 2 . . . . . 1 . . . . . . . . 1 Derelict Logs Recovered 5 | . . 1 . 1 . . . . 2 . . 1 . . . . Drone Launches . | . . . . . . . . . . . . . . . . . Drone Recoveries . | . . . . . . . . . . . . . . . . . Exploration | -11 -10 -10 -10 -9 -8 -7 -6 -5 -5 -5 -5 -4 -4 -3 -2 -1 ------------- Run | Yrd Mat Min Exi Min Mat Fac Fac Fac Upp Upp War Pro Fac Res Res Acc Turns Passed 9218 | 90 1627 1016 477 472 1351 411 318 538 143 66 370 106 493 569 561 610 Spaces Moved 11782 | 51 812 623 299 284 527 1155 995 979 467 236 1186 457 786 1127 617 1181 Core 82 | 2 . . . . 15 . . . . . . . . . 52 13 Treads 2559 | 49 812 623 299 284 492 . . . . . . . . . . . Legs . | . . . . . . . . . . . . . . . . . Wheels . | . . . . . . . . . . . . . . . . . Hover 527 | . . . . . . . . . . . . . . 125 402 . Flight 8614 | . . . . . 20 1155 995 979 467 236 1186 457 786 1002 163 1168 Fastest Speed 16 | 50 160 160 160 160 30 27 25 21 28 28 22 22 16 19 36 36 Average Speed 62 | 155 160 160 160 160 187 28 26 34 28 28 25 22 21 40 79 37 Slowest Speed 850 | 160 160 160 160 160 850 30 104 101 28 28 28 22 23 215 500 150 Overloaded Moves 215 | . . . . . . . . . . . . . 60 155 . . Propulsion Burnouts . | . . . . . . . . . . . . . . . . . Robots Hopped 34 | . . . . . . 4 7 12 . . 2 . 1 1 . 7 Cave-ins Triggered 2 | . . . . . . . . 1 . . 1 . . . . . Exploration Rate (%) 48 | 4 96 99 69 61 34 27 23 29 66 42 98 68 22 35 24 35 Regions Visited 16 Branch Regions 7 Pre-discovered Areas 4 | . . . 1 1 . . . . 2 . . . . . . . Known Exits Taken 4 | . . . . . . 1 1 . . . . . 1 . 1 . Unknown Exits Taken 12 | 1 1 1 1 1 1 . . 1 1 1 1 1 . 1 . . Scrap Searched 5 | . . 1 . 1 . . . . 2 . . 1 . . . . Spaces Dug 172 | . . . . . . 7 9 119 . . 4 . 16 10 1 6 Terrain Destroyed 367 | . 3 . . 2 17 7 15 181 . . 4 . 25 63 3 47 Melee 48 | . . . . . . 7 9 . . . 4 . 11 10 1 6 Projectile 11 | . 3 . . 2 4 . . . . . . . . . 2 . AOE 307 | . . . . . 13 . 6 181 . . . . 14 53 . 40 Terrain Rammed 2 | . . . . . . . . . . . . . . . . 2 Walls Destroyed 1 | . . . . . . . . . . . . . . . . 1 Machines Disabled . | . . . . . . . . . . . . . . . . . Actions | -11 -10 -10 -10 -9 -8 -7 -6 -5 -5 -5 -5 -4 -4 -3 -2 -1 --------- Run | Yrd Mat Min Exi Min Mat Fac Fac Fac Upp Upp War Pro Fac Res Res Acc Total 13049 | 58 1000 637 298 293 737 1201 1029 1143 475 235 1232 459 1065 1204 670 1313 Wait 702 | . 75 6 . . 73 6 6 141 . . 9 . 234 50 . 102 Move 11699 | 50 811 622 298 283 526 1146 980 955 466 235 1182 456 783 1124 616 1166 Hop 31 | . . . . . . 4 7 10 . . 1 . 1 1 . 7 Pick Up 56 | 1 16 1 . 1 14 3 7 2 1 . 1 . 4 . 3 2 Fast Attach 100 | 6 4 . . . 8 8 4 10 2 . 7 1 9 9 26 6 Attach 38 | . 1 . . 1 14 . 6 4 1 . 3 1 2 . 4 1 Detach 15 | . 2 . . . 5 . 1 2 . . 3 . 1 . 1 . Swap 18 | 1 5 . . . 3 2 1 . 1 . . . . . 1 4 Drop 71 | . 10 1 . 1 16 9 6 . 2 . 6 . 3 1 11 5 Fire 184 | . 72 1 . 4 75 . 1 18 . . . . 2 5 2 4 Melee 100 | . . . . . . 23 10 . 2 . 4 1 26 14 6 14 Ram 5 | . . . . . 3 . . . . . . . . . . 2 Kick . | . . . . . . . . . . . . . . . . . Crush 13 | . 4 6 . 3 . . . . . . . . . . . . Escape Stasis 1 | . . . . . . . . 1 . . . . . . . . Rewire . | . . . . . . . . . . . . . . . . . Trap . | . . . . . . . . . . . . . . . . . Miscellaneous 16 | . . . . . . . . . . . 16 . . . . . Route ------- -11/Scrapyard -10/Materials (discovered 5 exits: [*Mat x3] / *Min x2) -10/Mines (discovered 4 exits: [*Mat x2] / *Exi / [*Sub]) -10/Exiles (discovered 2 exits: [*Min x2]) -9/Mines (discovered 2 exits: *Mat x2) -8/Materials -7/Factory (discovered 5 exits: *Fac x4 / [*Low]) -6/Factory (discovered 6 exits: *Fac x4 / [*Low] / [*Ext]) -5/Factory -5/Upper Caves -5/Upper Caves -5/Warlord -4/Proximity Caves -4/Factory (discovered 4 exits: *Res x4) -3/Research -2/Research -1/Access To Epsilon Eridani History --------- Turn | Location | Event 12 | -11/Scrapyard | Discovered new exit (range 14) 91 | -11/Scrapyard | Entered Materials 301 | -10/Materials | Build established: Mutant 340 | -10/Materials | Discovered new exit (range 15) 849 | -10/Materials | Discovered new exit (range 11) 923 | -10/Materials | Core integrity fell below 50% 1096 | -10/Materials | Discovered new exit (range 7) 1246 | -10/Materials | Discovered new exit (range 4) 1294 | -10/Materials | Discovered new exit (range 16) 1718 | -10/Materials | Entered Mines 1937 | -10/Mines | Found the Drone Emporium 2016 | -10/Mines | Assisted by bots powering up and referring to "LRC-V3" 2102 | -10/Mines | Discovered new exit (range 14) 2296 | -10/Mines | A weapon hastily lodged in a ceiling crevice suddenly fell to the ground 2331 | -10/Mines | Discovered new exit (range 9) 2370 | -10/Mines | Learned 2 Materials zone layouts 2574 | -10/Mines | Discovered new exit (range 10) 2627 | -10/Mines | Deemed a non-threat by the Exiles lab entrance 2628 | -10/Mines | Discovered new exit (range 5) 2734 | -10/Mines | Entered Exiles 2734 | -10/Exiles | Accompanied by 3 allies 2758 | -10/Exiles | Discovered new exit (range 15) 2781 | -10/Exiles | Met 8R-AWN 2803 | -10/Exiles | Met EX-HEX 2859 | -10/Exiles | Met EX-BIN 2878 | -10/Exiles | Aligned with FarCom system 2880 | -10/Exiles | Given EX-Vault access code 2925 | -10/Exiles | Opened EX-Vault 2962 | -10/Exiles | Warned to stay clear of 0b10 Research branches 3021 | -10/Exiles | Met EX-DEC 3030 | -10/Exiles | Learned location of Zion (-7) 3198 | -10/Exiles | Discovered new exit (range 10) 3211 | -10/Exiles | Entered Mines 3211 | -9/Mines | Accompanied by 3 allies 3212 | -9/Mines | Learned location of Storage (-7) 3432 | -9/Mines | Discovered new exit (range 5) 3455 | -9/Mines | Learned location of 1 exit from Lower Caves 3535 | -9/Mines | Discovered new exit (range 9) 3601 | -9/Mines | Assembled infested the area 3606 | -9/Mines | Assisted by a Guerilla fighting off Assembled 3654 | -9/Mines | Lost 4 allies 3683 | -9/Mines | Entered Materials 3683 | -8/Materials | Evolved 4 slots: Propulsion x1, Utility x3 3804 | -8/Materials | Lost 3 parts (1n1u1w) 4493 | -8/Materials | Discovered new exit (range 3) 4535 | -8/Materials | Lost 3 parts (1p1n1u) 4775 | -8/Materials | Repaired Broken Lgt. Deuterium Engine 4858 | -8/Materials | Core integrity fell below 50% 5034 | -8/Materials | Entered Factory 5034 | -7/Factory | Evolved 2 slots: Propulsion x1, Utility x1 5234 | -7/Factory | Identified exit to Factory 5307 | -7/Factory | Discovered new exit (range 10) 5360 | -7/Factory | Build established: Infiltrator-Sprinter 5367 | -7/Factory | Repaired Adv. Heat Sink 5445 | -7/Factory | Entered another Factory area 5445 | -6/Factory | Evolved 2 slots: Propulsion x1, Utility x1 5496 | -6/Factory | Fabricated Hacking Suite? 5607 | -6/Factory | Discovered new exit (range 6) 5626 | -6/Factory | Identified exit to Factory 5710 | -6/Factory | Discovered new exit (range 11) 5741 | -6/Factory | Lost 4 parts (1p1n1u1w) 5758 | -6/Factory | Build established: Hacker-Sprinter 5763 | -6/Factory | Entered another Factory area 5763 | -5/Factory | Evolved 2 slots: Power x1, Propulsion x1 5794 | -5/Factory | Crushed by falling debris 5795 | -5/Factory | System corruption reached 10% 5825 | -5/Factory | Lost 3 parts (2n1u) 6043 | -5/Factory | Fabricated Cld. VTOL Module? 6203 | -5/Factory | Lost 7 parts (2p1n4u) 6281 | -5/Factory | Discovered new exit (range 15) 6301 | -5/Factory | Entered Upper Caves 6375 | -5/Upper Caves | Learned location of Armory (-3) 6418 | -5/Upper Caves | Attracted the attention of an 0b10 checkpoint 6442 | -5/Upper Caves | Discovered new exit (range 10) 6444 | -5/Upper Caves | Entered another Upper Caves area 6457 | -5/Upper Caves | Attracted the attention of an 0b10 checkpoint 6485 | -5/Upper Caves | Discovered new exit (range 16) 6510 | -5/Upper Caves | Entered Warlord 6527 | -5/Warlord | Discovered new exit (range 8) 6542 | -5/Warlord | System corruption cleaned by Quarantine Array 6602 | -5/Warlord | Found Prototype Device 6602 | -5/Warlord | Identified Minesniffer Drone Bay 6609 | -5/Warlord | Met Warlord 6634 | -5/Warlord | Warlord's base attacked by MAIN.C 6641 | -5/Warlord | Found Prototype Device 6641 | -5/Warlord | Identified Exp. Phase Shifter 6679 | -5/Warlord | Found Prototype Piercing Weapon 6679 | -5/Warlord | Identified Vortex Lance 6824 | -5/Warlord | Crushed by falling debris 6838 | -5/Warlord | Warlord forces counterattacked 6855 | -5/Warlord | Lost 3 parts (1n2u) 6864 | -5/Warlord | Core integrity fell below 50% 6865 | -5/Warlord | Opened side exit 6880 | -5/Warlord | Entered Proximity Caves 6892 | -4/Proximity Caves | Found Alien Artifact 6892 | -4/Proximity Caves | Identified Dimensional Node Initializer 6892 | -4/Proximity Caves | Initialized slip node 6924 | -4/Proximity Caves | Spotted B-86 Titan 6970 | -4/Proximity Caves | Discovered new exit (range 10) 6973 | -4/Proximity Caves | Learned Research security intel 6986 | -4/Proximity Caves | Entered Factory 6986 | -4/Factory | Evolved 2 slots: Propulsion x1, Utility x1 7005 | -4/Factory | Hacking Suite fried by hacking feedback 7134 | -4/Factory | Fabricated Cld. VTOL Module? 7396 | -4/Factory | Lost 4 parts (1p1n2u) 7413 | -4/Factory | Identified exit to Research 7479 | -4/Factory | Entered Research 7479 | -3/Research | Evolved 2 slots: Utility x2 7480 | -3/Research | Lost 3 parts (1n1u1w) 7538 | -3/Research | Spotted B-86 Titan 7862 | -3/Research | Found Fusion Bomb Launcher 7864 | -3/Research | System corruption reached 10% 7889 | -3/Research | Lost 5 parts (2p3n) 8035 | -3/Research | Discovered new exit (range 22) 8048 | -3/Research | Entered another Research area 8048 | -2/Research | Warlord forces began assault on 0b10 8048 | -2/Research | Evolved 2 slots: Propulsion x1, Utility x1 8158 | -2/Research | Research machine network offline 8169 | -2/Research | Met up with Warlord 8173 | -2/Research | Met DD-05H 8178 | -2/Research | Core integrity fell below 50% 8234 | -2/Research | Lost 12 parts (2p2n8u) 8336 | -2/Research | Found Prototype Hackware 8336 | -2/Research | Identified Exp. System Shield 8363 | -2/Research | Borebot progress halted 8443 | -2/Research | Borebot progress halted 8456 | -2/Research | Borebot progress halted 8598 | -2/Research | Discovered new exit (range 14) 8605 | -2/Research | Identified exit to Access 8609 | -2/Research | Entered Access 8609 | -1/Access | Evolved 2 slots: Utility x2 8684 | -1/Access | Found Fusion Bomb Launcher 8686 | -1/Access | Found Fusion Bomb Launcher 8693 | -1/Access | Garrison activated, responded to threat 8846 | -1/Access | Identified exit to Surface 9098 | -1/Access | Build established: Hacker-Ninja 9177 | -1/Access | Spotted B-99 Colossus 9178 | -1/Access | Spotted B-99 Colossus 9200 | -1/Access | Core integrity fell below 50% 9219 | *** | Escaped! Last Messages --------------- 09192_ Penetrated by Slug. 09192_ Slug penetrates Sealed Heavy Doors. 09196_ Penetrated by Slug. 09196_ Impulse Thruster Array destroyed. 09196_ Slug penetrates Sealed Heavy Doors. 09196_ Penetrated by Slug. 09196_ Impulse Thruster Array destroyed. 09196_ Slug penetrates Sealed Heavy Doors. 09196_ Adv. Heat Sink destroyed. 09196_ Slug penetrates Sealed Heavy Doors. 09196_ Penetrated by Slug. 09196_ Impulse Thruster Array destroyed. 09196_ Penetrated by Slug. 09197_ U-05 Engineer builds a Wall. 09199_ Penetrated by Slug. 09199_ Slug penetrates Main Access Shell. 09199_ Penetrated by Slug. 09199_ Slug penetrates Main Access Shell. 09201_ Acquired 4 matter. [Achievement: Epsilon Run] Map ----- +----------------------------------------------------+ | ## ???????????? ??? ##### ####### #### # | | ?## ???????? ## ##### !! + #### # | | ???????????? ######+####"### ! ####### #### # | | ??????????? # ####### #### # | | ??????????? # % ####### #### # | | ?????????? # #######+####+# | | ??????????? + ## | | ??????????????????####" %# ## | | ??????????????????##### %" ## | | ???????????????????#### % ########### | | ??????????????????## % ######## " | | ??????????????????## % ##????## """" | | ??????????????????## BB BB ##????## """"" | | ??????????????????## BB BB ##????## """"" | | ??????????????????## ##????## """" | | ??????????????????## % ##????## " | | ??????????????????## % ##????## | | ??????????????????##"" % """"######## | | ??????????????????##"" %""??"##################/# | | ?????????????????????" """?????## ] # | | ???????????????????#"" """""""### + | | ???????????????????#% % ### " # "" | | ???????????????????# """"" ### """" # | | ???????????????????# " "???## """"" ## # | | ???????????????????# " "" "???## ! """""## # | | ???????????????????# " "@ "???## """" ## # | | ???????????????????# " "???## " ## # | | ???????????????????# """ "" ### ## # | | ???????????????????# ### ## # | | ???????????????????# ########+######## # | | ??????????????????#""""""""""""####### ######## # | | ??????????????????##"" ##???## ##????## # | | ??????????????????##"" ##???## ##????## # | | ??????????????????##"" ##???## ##????## + | | ??????????????????##T ##???## ##????## # | | ??????????????????##"" ###??## ##???### # | | ??????????????????##" ####### ######## # | | ??????????????????##" "###### ####### | | ????????????? % | | ???????????? % | | ????????????##+####################+###"###### | | ???????????? ################ ###### | | ??????????????????????????????????????? ###### | | ??????????????????????????????????????? ##???? | | ??????????????????????????????????????? ##???? | | ??????????????????????????????????????? ##???? | | ??????????????????????????????????????? ##???? | | ?????????????????????????????????????""""" ##???? | | ?????????????????????????????????????""""" ##???? | | ?????????????????????????????????????"""""? ##???? | +----------------------------------------------------+ Best States ------------- Heat Dissipation 102 Coolant Potential 80 Energy Generation 45 Energy Capacity 920 Matter Stores 300 Matter Capacity 300 Sight Range 22 Terrain Scan Density 10 ECM Strength 1 Jamming Range 16 Power Amplification 60 Armor Coverage 225 Resistance: TH 15 Propulsion Shielding 33 Utility Shielding 90 Evasion (%) 70 Melee Accuracy 8 Recoil Reduction 3 Offensive Hacking 40 Defensive Hacking 16 Authchip Count 1 Item Schematics ----------------- Hacking Suite | -8/Materials | Scanalyzed Lgt. Deuterium Engine | -8/Materials | Scanalyzed Imp. VTOL Module | -7/Factory | Scanalyzed Nuclear Pulse Thruster | -6/Factory | Scanalyzed Cld. VTOL Module | -6/Factory | Hacked Imp. Hacking Suite | -6/Factory | Hacked Robot Schematics ------------------ None Fabricated ------------ Hacking Suite | x1 | -6/Factory Cld. VTOL Module | x1 | -5/Factory Cld. VTOL Module | x1 | -4/Factory Alien Tech Used ----------------- Dimensional Node Initializer Achievements -------------- Can't Catch Me Charge!!! Epsilon Run Challenges ------------ None Game ------ Seed MultinovaResetWeb Manual? 0 Play Time 03:17:28 Cumulative 68.2 hours Start 2025.01.07 @ 21:35:22 End 2025.01.08 @ 02:03:33 Sessions 1 Manual Loads 0 Difficulty Rogue Special Mode None Game No. 44 Rogue 44 Adventurer 0 Explorer 0 Win Type 0 Total 1 Types 1/0/0/0/0/0/0/0/0 Lore% 26 Gallery% 34 Achievement% 33 Wizard Run 0 Options --------- Layout 0 ASCII 0 Keyboard 1 Movement Arrows Keybinds 0 Fullscreen 2 Font 18/Terminus Map View 76x50 Zoom Use 0% Tactical HUD 1 Map Filters NONE Filters NONE Steam 1 RUN: a8a0e301-886c-4dd0-800d-06176cf27e09